bitfinex/quotes_ETHUSD_20260209
["timestamp","ask_amount","ask_price","bid_price","bid_amount"]
[1770633915408,1.04144725,2021.1,2020.4,18.14255978]
[1770633915611,4.49844725,2021.0,2020.4,18.14255978]
[1770633915814,1.04144725,2020.9,2020.4,18.14255978]
[1770633916029,1.04144725,2020.8,2020.4,18.14255978]
[1770633916331,4.69402577,2021.0,2020.4,19.37993545]
[1770633916332,3.457,2021.0,2020.4,19.37993545]
[1770633916631,1.04085422,2020.9,2020.4,19.37993545]
[1770633916805,3.457,2021.0,2020.4,19.37993545]
[1770633917007,1.04088445,2020.9,2020.4,19.37993545]
[1770633917335,3.457,2021.0,2020.5,0.0735222]
[1770633917539,1.23674157,2021.5,2020.5,0.0735222]
[1770633917714,1.04058674,2021.4,2020.6,1.23725626]
[1770633917904,1.04058674,2021.3,2020.6,1.23725626]
[1770633918104,1.04058674,2021.2,2020.7,18.14255978]
[1770633918334,1.23671204,2021.5,2020.7,18.14255978]
[1770633918531,1.04048065,2021.4,2020.7,18.14255978]
[1770633918740,1.23671204,2021.5,2020.7,18.14255978]
[1770633918741,1.04048065,2021.3,2020.7,18.14255978]
[1770633918917,1.23671204,2021.5,2020.7,18.14255978]
[1770633918918,1.04048065,2021.2,2020.7,18.14255978]
[1770633919240,1.04048065,2021.1,2020.7,18.14255978]
[1770633919426,1.04048065,2021.0,2020.2,1.23749835]
[1770633919606,1.04048065,2020.9,2020.3,18.14255978]
[1770633919806,1.04048065,2020.8,2020.3,18.14255978]
[1770633920109,1.23703471,2021.0,2020.3,18.14255978]
[1770633920319,1.0399351,2020.9,2020.3,18.14255978]
[1770633920520,1.23703471,2021.0,2020.3,18.14255978]
[1770633920847,1.03994151,2020.9,2020.3,18.14255978]
[1770633921005,1.03994151,2020.8,2020.3,18.14255978]
[1770633921205,1.23703471,2021.0,2020.3,18.14255978]
[1770633921451,1.48832678,2020.8,2020.3,18.14255978]
[1770633921740,1.23725626,2020.6,2020.1,0.001]
[1770633922046,1.03942166,2020.5,2020.2,18.14255978]
[1770633922244,1.23725626,2020.6,2020.2,18.14255978]
[1770633922539,1.03844985,2020.5,2020.2,18.14255978]
[1770633922707,1.23723731,2020.7,2020.2,18.14255978]
[1770633922907,1.03796508,2020.6,2020.2,18.14255978]
[1770633923228,1.03796508,2020.5,2020.2,18.14255978]
[1770633923432,1.23723731,2020.7,2020.2,18.14255978]
[1770633923637,1.03763371,2020.6,2020.2,18.14255978]
[1770633923828,1.03763371,2020.5,2020.2,18.14255978]
[1770633924031,1.23732782,2020.5,2020.2,18.14255978]
[1770633924417,1.23731607,2020.6,2020.2,18.14255978]
[1770633924744,1.03730814,2020.5,2020.2,18.14255978]
[1770633924903,1.23731607,2020.6,2020.2,18.14255978]
[1770633925105,1.03726639,2020.5,2020.2,18.14255978]
[1770633925306,1.23731607,2020.6,2020.2,18.14255978]
[1770633925506,1.03747674,2020.5,2020.1,0.001]
[1770633925803,2.72527695,2021.2,2020.2,18.14255978]
[1770633926124,4.49568881,2021.0,2020.4,0.001]
[1770633926306,1.03768881,2020.9,2020.4,0.001]
[1770633926633,1.03768881,2020.8,2020.5,18.14255978]
[1770633926836,3.458,2021.0,2020.5,18.14255978]
[1770633927031,1.03788239,2020.9,2020.5,18.14255978]
[1770633927331,1.03788239,2020.8,2020.5,18.14255978]
[1770633927540,1.0379232,2020.7,2020.4,0.001]
[1770633927724,1.0379232,2020.6,2020.4,16.63842655]
[1770633927926,1.23707259,2020.9,2020.4,16.63842655]
[1770633928113,1.03789496,2020.8,2020.4,16.63842655]
[1770633928317,1.03789496,2020.7,2020.4,16.63842655]
[1770633928545,1.03796477,2020.6,2020.4,16.63842655]
[1770633928746,1.23707259,2020.9,2020.4,16.63842655]
[1770633928941,1.03796739,2020.8,2020.4,16.63842655]
[1770633929140,1.03796739,2020.7,2020.4,16.63842655]
[1770633929317,1.03796739,2020.6,2020.4,16.63842655]
[1770633929521,1.23707259,2020.9,2020.4,16.63842655]
[1770633929741,1.03846368,2020.8,2020.4,16.63842655]
[1770633930026,0.9382394,2020.7,2020.4,16.63842655]
[1770633930226,4.69504258,2021.0,2020.4,16.63842655]
[1770633930435,4.6950121,2021.0,2020.4,16.63842655]
[1770633931939,4.6950121,2021.0,2020.4,0.001]
[1770633932136,4.69501599,2021.0,2020.4,0.001]
[1770633932344,4.69501599,2021.0,2020.5,16.63742655]
[1770633933049,4.69501458,2021.0,2020.5,16.63742655]
[1770633933729,3.458,2021.0,2020.5,16.63742655]
[1770633934051,4.69503136,2021.0,2020.5,16.63742655]
[1770633934644,3.458,2021.0,2020.5,16.63742655]
[1770633936044,9.92301251,2021.0,2020.5,16.47720227]
[1770633936249,4.69501251,2021.0,2020.5,16.47720227]
[1770633936634,4.69501251,2021.0,2020.6,16.47720227]
[1770633936855,4.69501251,2021.0,2020.5,16.47720227]
[1770633937249,4.69501251,2021.0,2020.6,16.47720227]
[1770633937546,4.69501251,2021.0,2020.5,16.47720227]
[1770633939036,9.92301251,2021.0,2020.5,16.47720227]
[1770633939535,9.92301251,2021.0,2020.5,16.47820227]
[1770633939736,0.002,2020.8,2020.5,16.47820227]
[1770633940252,4.69501251,2021.0,2020.6,16.47520227]
[1770633940442,4.69501251,2021.0,2020.6,13.79826529]
[1770633941551,9.92301251,2021.0,2020.6,13.79826529]
[1770633942138,9.92301251,2021.0,2020.5,0.001]
[1770633942544,4.69501251,2021.0,2020.5,0.001]
[1770633943128,4.69501811,2021.0,2020.5,0.001]
[1770633944837,9.92301811,2021.0,2020.5,0.001]
[1770633945239,5.228,2020.8,2020.3,0.001]
[1770633946235,1.23719503,2020.7,2020.3,0.001]
[1770633946443,3.459,2020.6,2020.3,0.001]
[1770633946959,3.459,2020.6,2020.1,0.001]
[1770633948349,4.69628662,2020.6,2020.1,0.001]
[1770633949171,3.459,2020.6,2020.1,1.6008298]
[1770633950269,4.94660604,2021.6,2020.1,1.6008298]
[1770633950270,22.42097043,2021.7,2020.1,1.6008298]
[1770633950431,6.70935617,2021.8,2020.7,1.5998298]
[1770633950432,0.002,2021.8,2020.7,1.5998298]
[1770633950632,3.461,2021.8,2021.0,1.5998298]
[1770633951136,1.23840807,2022.0,2021.3,1.5998298]
[1770633951337,0.002,2022.0,2021.3,1.5998298]
[1770633951731,0.002,2022.0,2021.5,1.5998298]
[1770633951963,0.002,2022.0,2021.2,1.5998298]
[1770633952133,0.002,2022.0,2021.2,1.673352]
[1770633952343,0.002,2022.0,2021.2,1.5998298]
[1770633952684,0.002,2022.0,2020.5,1.5998298]
[1770633952685,1.76111502,2021.8,2020.5,1.5998298]
[1770633952835,1.83463722,2021.6,2020.1,1.6008298]
[1770633953034,0.1024,2021.7,2020.4,2.83717872]
[1770633953237,0.002,2020.8,2020.4,2.83717872]
[1770633953642,0.1024,2021.7,2020.4,1.5998298]
[1770633953848,0.002,2021.0,2020.3,0.001]
[1770633954446,0.002,2021.0,2020.4,1.23734969]
[1770633954654,0.002,2021.0,2020.5,1.5998298]
[1770633955039,0.002,2021.0,2020.3,1.23843543]
[1770633955863,0.002,2021.0,2020.3,0.001]
[1770633958841,0.002,2021.0,2020.3,1.6008298]
[1770633960072,0.002,2021.0,2020.5,1.5998298]
[1770633960263,4.94624789,2021.8,2020.7,1.5998298]
[1770633960436,4.94804374,2021.9,2020.7,1.5998298]
[1770633960639,1.86551502,2021.9,2020.4,1.5998298]
[1770633960849,1.86551502,2021.9,2020.4,2.83720567]
[1770633961052,1.86551502,2021.9,2020.5,1.5998298]
[1770633961437,0.1044,2021.9,2020.7,2.83700458]
[1770633961737,0.1044,2021.9,2020.7,2.83702479]
[1770633961942,0.1044,2021.9,2020.8,1.5998298]
[1770633962551,1.23847408,2021.9,2021.0,1.5998298]
[1770633962768,0.002,2021.9,2021.2,1.5998298]
[1770633962940,0.002,2022.3,2021.5,1.5998298]
[1770633963342,1.2382514,2022.3,2021.5,1.5998298]
[1770633963555,0.002,2022.3,2021.5,1.5998298]
[1770633964142,0.002,2022.3,2021.4,0.0735222]
[1770633964143,1.23789461,2022.9,2021.8,1.5998298]
[1770633964455,1.23789461,2022.9,2021.0,1.5998298]
[1770633964456,0.1024,2022.7,2021.0,1.5998298]
[1770633964655,5.228,2022.5,2021.2,1.5998298]
[1770633965038,1.23603282,2022.6,2021.2,1.673352]
[1770633965854,1.2378883,2022.9,2021.7,1.5998298]
[1770633966054,0.002,2022.3,2021.2,1.5998298]
[1770633966256,0.002,2022.3,2021.3,1.5998298]
[1770633966570,0.002,2022.3,2021.4,2.83659639]
[1770633966869,0.002,2022.3,2021.5,1.5998298]
[1770633968945,0.002,2022.3,2021.8,1.5998298]
[1770633970188,0.002,2022.5,2021.8,1.5998298]
[1770633970854,0.002,2022.5,2021.6,1.23664261]
[1770633971182,0.002,2022.5,2021.6,1.5998298]
[1770633972559,0.002,2022.5,2021.2,0.0735222]
[1770633972560,0.002,2022.5,2021.2,1.5998298]
[1770633972849,0.002,2022.5,2021.4,2.83658677]
[1770633973049,0.002,2022.5,2021.5,1.5998298]
[1770633973654,12.34621891,2022.3,2020.8,2.83693008]
[1770633973871,0.0735222,2022.1,2020.8,1.5998298]
[1770633974073,0.0735222,2022.1,2020.3,0.001]
[1770633974074,10.58510389,2021.9,2020.4,1.5998298]
[1770633974262,0.0735222,2021.8,2020.4,1.5998298]
[1770633974560,3.457,2021.7,2020.5,1.23728729]
[1770633974965,3.457,2021.7,2020.4,2.83716732]
[1770633975155,1.23664424,2021.6,2020.5,1.23730121]
[1770633975361,1.23664424,2021.6,2020.4,2.83716204]
[1770633975559,1.23664424,2021.6,2020.5,1.67330877]
[1770633975769,4.69361504,2021.7,2020.5,1.74683097]
[1770633976674,1.23627732,2022.2,2020.9,1.67330877]
[1770633976873,1.23627732,2022.2,2020.5,1.67330877]
[1770633977070,2.98622941,2022.2,2020.5,1.67330877]
[1770633977270,10.58510389,2021.9,2020.5,1.67330877]
[1770633977667,10.58510389,2021.9,2020.5,2.9106193]
[1770633977990,10.58510389,2021.9,2020.3,0.001]
[1770633977991,0.0735222,2021.4,2020.3,0.001]
[1770633978195,0.0735222,2021.4,2019.8,1.23774265]
[1770633978196,6.99535675,2021.0,2019.8,1.23774265]
[1770633978490,3.5594,2021.3,2020.1,1.23756037]
[1770633978774,3.5594,2021.3,2019.7,5.02471638]
[1770633978775,3.457,2021.3,2020.5,0.001]
[1770633978981,0.1759222,2021.7,2020.5,0.001]
[1770633979188,1.23664424,2021.6,2020.5,0.001]
[1770633979551,3.00400099,2021.6,2020.5,0.001]
[1770633979754,1.23664424,2021.6,2020.5,0.001]
[1770633981000,6.99535675,2021.2,2020.5,0.001]
[1770633981210,1.23695017,2021.1,2020.5,0.001]
[1770633982997,1.2369374,2021.2,2020.5,0.001]
[1770633983496,6.71491265,2021.5,2020.5,0.001]
[1770633983867,4.9475559,2021.5,2020.5,0.001]
[1770633984575,6.71491265,2021.5,2020.5,0.001]
[1770633985414,4.9475559,2021.5,2020.5,0.001]
[1770633986074,4.69467685,2021.6,2020.5,1.69533468]
[1770633986277,3.458,2021.6,2020.5,1.69533468]
[1770633986468,1.23661043,2021.7,2020.5,1.69533468]
[1770633986669,3.458,2022.1,2021.0,1.76785688]
[1770633986975,1.23627732,2022.2,2021.0,1.69433468]
[1770633987174,1.23627732,2022.2,2020.7,1.69433468]
[1770633987389,4.94710928,2022.3,2020.9,1.23707259]
[1770633987590,4.94710928,2022.3,2020.9,2.93140727]
[1770633987899,6.71446603,2022.3,2020.9,2.93140727]
[1770633989396,6.71446603,2022.3,2020.5,0.001]
[1770633989397,1.76735675,2022.0,2020.5,2.93260327]
[1770633989607,1.84087895,2022.0,2020.5,0.001]
[1770633989818,1.76735675,2021.6,2020.5,0.001]
[1770633989977,3.458,2021.5,2020.5,0.001]
[1770633990174,5.22535675,2021.5,2020.5,0.001]
[1770633990395,5.22535675,2021.5,2020.7,0.001]
[1770633991672,1.23676659,2021.4,2020.7,0.001]
[1770633991876,0.002,2022.1,2020.7,0.001]
[1770633992185,10.58510389,2021.7,2020.7,0.001]
[1770633992385,8.40408764,2022.0,2020.7,0.001]
[1770633992706,5.228,2021.9,2020.7,0.001]
[1770633993805,6.46452191,2021.8,2020.7,0.001]
[1770633995003,8.23187866,2021.8,2020.7,0.001]
[1770633995388,6.46452191,2021.8,2020.7,0.001]
[1770633995777,10.17408764,2021.9,2020.7,0.001]
[1770633996188,4.94608764,2021.9,2020.7,1.69533468]
[1770633996391,4.69444585,2022.0,2020.9,1.76785688]
[1770633996600,0.002,2022.1,2021.3,1.69433468]
[1770633997807,0.002,2022.1,2021.4,1.23676659]
[1770633999504,0.002,2022.3,2021.5,1.76785688]
[1770633999886,0.002,2022.3,2021.7,1.69433468]
[1770634000704,0.002,2022.3,2021.5,1.23669375]
[1770634001090,0.002,2022.3,2021.4,1.23673519]
[1770634001304,0.002,2022.3,2021.5,1.23669852]
[1770634001900,0.002,2022.3,2021.3,1.23682778]
[1770634002100,0.002,2022.3,2021.3,2.93116246]
[1770634002706,0.002,2022.3,2021.4,1.69433468]
[1770634003016,0.002,2022.5,2021.8,1.76785688]
[1770634003599,0.002,2021.9,2021.8,1.76785688]
[1770634003789,0.002,2022.1,2021.8,1.76785688]
[1770634003995,0.002,2022.5,2021.7,1.23658118]
[1770634004199,0.002,2022.5,2021.8,1.23651904]
[1770634004520,0.002,2022.5,2021.8,1.23651935]
[1770634006027,0.002,2022.5,2021.8,1.31004155]
[1770634006315,0.002,2022.5,2021.8,1.23651935]
[1770634008090,0.002,2022.5,2021.8,1.31004155]
[1770634008487,0.002,2022.5,2021.8,1.23651935]
[1770634008721,0.002,2022.5,2021.8,1.31004155]
[1770634009019,0.002,2022.5,2021.8,3.00955275]
[1770634009335,0.002,2022.5,2021.9,1.6995112]
[1770634009645,0.002,2022.5,2021.8,1.23651935]
[1770634010625,0.002,2022.5,2021.8,2.93603055]
[1770634010863,0.002,2022.5,2022.0,1.7730334]
[1770634011007,0.002,2022.9,2022.3,0.0735222]
[1770634012408,0.002,2023.2,2022.5,1.6995112]
[1770634012803,0.002,2023.2,2022.6,1.23603282]
[1770634014655,1.23755388,2023.4,2022.6,3.00906622]
[1770634014656,0.002,2023.4,2022.6,3.00906622]
[1770634014815,0.002,2023.4,2023.0,1.23578843]
[1770634016210,0.002,2023.6,2023.0,1.23578843]
[1770634016519,0.002,2023.8,2023.2,1.7730334]
[1770634016715,0.002,2023.8,2023.3,1.23560519]
[1770634017059,0.002,2023.8,2023.4,3.456]
[1770634017218,0.002,2024.1,2023.4,3.456]
[1770634017717,0.002,2024.6,2023.4,3.456]
[1770634017925,1.75236891,2024.6,2023.3,1.23560519]
[1770634018240,1.75236891,2024.6,2023.4,3.455]
[1770634018817,1.2348728,2024.5,2023.5,1.23548307]
[1770634019748,0.002,2024.6,2023.5,2.93499427]
[1770634019917,0.002,2024.6,2023.6,1.6995112]
[1770634020422,0.002,2024.6,2023.5,1.23548307]
[1770634020423,1.2368193,2024.6,2023.5,1.23548307]
[1770634020621,2.98718821,2024.6,2023.5,3.455]
[1770634020824,3.06071041,2024.6,2023.3,4.94223421]
[1770634021234,1.75036891,2024.5,2023.3,1.23560519]
[1770634021826,1.75036891,2024.2,2023.0,1.23577809]
[1770634022029,1.75036891,2024.2,2023.1,1.23571859]
[1770634022735,1.75036891,2024.2,2023.2,1.23565055]
[1770634022939,1.23511684,2024.1,2023.0,1.23578843]
[1770634023355,1.75036891,2024.0,2022.7,1.23594386]
[1770634023551,1.75036891,2024.0,2022.8,1.23590833]
[1770634023733,1.75036891,2024.0,2022.9,1.23583979]
[1770634023933,1.75036891,2024.0,2022.8,1.23586469]
[1770634024349,1.75036891,2024.0,2022.7,1.23593303]
[1770634024530,1.75036891,2023.9,2022.6,1.23602757]
[1770634024945,1.75036891,2023.7,2022.0,1.7005112]
[1770634025128,1.75036891,2023.6,2022.3,1.23618544]
[1770634025327,1.75036891,2023.6,2022.3,1.23618855]
[1770634025575,1.75036891,2023.4,2022.0,1.2373886]
[1770634025859,1.75036891,2023.4,2022.0,1.23736177]
[1770634026047,1.75036891,2023.4,2022.1,1.23633551]
[1770634026222,8.31606884,2023.8,2022.5,1.23609387]
[1770634026424,1.23529993,2023.8,2022.5,1.23609387]
[1770634026628,1.23529993,2023.8,2022.7,0.0735222]
[1770634026860,1.23526296,2023.9,2022.7,1.7730334]
[1770634027041,1.23526296,2023.9,2022.8,1.23591061]
[1770634027239,4.68922296,2024.0,2023.0,0.0735222]
[1770634027751,1.2349338,2024.4,2023.0,0.0735222]
[1770634028146,2.98530271,2024.4,2022.8,2.93542181]
[1770634028456,0.002,2023.4,2022.8,2.93542181]
[1770634028633,2.98530271,2024.4,2022.8,2.93542181]
[1770634028953,0.002,2023.6,2022.8,2.93542181]
[1770634029251,0.002,2023.6,2022.9,23.3290692]
[1770634029452,1.2349338,2024.4,2023.0,12.4108264]
[1770634029629,1.308456,2024.4,2022.8,1.23591061]
[1770634029827,0.0735222,2024.1,2022.6,4.94401858]
[1770634030160,0.0735222,2024.1,2022.8,1.23590259]
[1770634030648,0.0735222,2024.1,2022.8,1.23590019]
[1770634031258,0.0735222,2024.1,2022.5,3.454]
[1770634031259,0.0735222,2023.8,2022.5,3.454]
[1770634031567,0.0735222,2023.8,2022.5,4.69009152]
[1770634032445,0.0735222,2023.8,2022.0,0.0745222]
[1770634032446,0.0735222,2023.8,2022.0,0.001]
[1770634032646,0.0735222,2023.5,2022.3,1.23620618]
[1770634033245,0.0735222,2023.5,2022.0,0.001]
[1770634033246,1.23554413,2023.4,2022.0,0.001]
[1770634033556,1.23554413,2023.4,2022.0,1.7005112]
[1770634033767,1.23542202,2023.6,2022.2,1.7730334]
[1770634034080,1.75036891,2023.5,2022.0,0.001]
[1770634035172,1.23542202,2023.6,2022.1,1.6995112]
[1770634035390,1.63103227,2023.6,2022.2,1.23627732]
[1770634035590,1.63103227,2023.6,2022.1,1.23629673]
[1770634035742,1.63103227,2023.0,2022.0,0.001]
[1770634036078,1.63103227,2022.7,2022.0,0.001]
[1770634036436,1.63103227,2022.7,2020.9,1.72886088]
[1770634036437,1.70455447,2022.5,2020.9,1.72886088]
[1770634036648,1.63103227,2022.1,2020.9,1.23806074]
[1770634037054,1.63103227,2022.1,2020.9,0.001]
[1770634037055,0.0735222,2021.9,2020.9,0.001]
[1770634037262,1.23652191,2021.8,2020.9,0.001]
[1770634038373,1.68478447,2021.7,2020.9,0.001]
[1770634038734,0.0735222,2021.6,2020.9,0.001]
[1770634039142,1.68478447,2021.7,2020.9,0.001]
[1770634039472,1.23664424,2021.6,2020.9,0.001]
[1770634041050,1.23664424,2021.6,2021.1,0.001]
[1770634041472,1.78718447,2022.1,2021.1,0.001]
[1770634041473,1.3387996,2022.0,2021.1,0.001]
[1770634041772,1.2363996,2022.0,2021.1,0.001]
[1770634041992,1.68478447,2021.5,2020.9,0.001]
[1770634042574,0.0735222,2021.3,2020.7,0.001]
[1770634043379,1.23688897,2021.2,2020.7,0.001]
[1770634044967,0.0735222,2021.0,2020.5,0.001]
[1770634045169,0.0735222,2021.0,2020.0,0.001]
[1770634045372,1.75830667,2021.0,2020.0,0.001]
[1770634045671,1.23707259,2020.9,2020.0,0.001]
[1770634046277,3.457,2020.8,2020.0,0.001]
[1770634047148,5.3015222,2020.7,2020.0,0.001]
[1770634047472,1.23725626,2020.6,2020.0,0.001]
[1770634049649,4.948309,2020.9,2020.0,0.001]
[1770634050157,1.23707259,2020.9,2020.0,0.001]
[1770634050351,4.69505648,2021.0,2020.0,1.59374016]
[1770634050557,3.458,2021.0,2020.0,1.59374016]
[1770634050757,4.69501156,2021.0,2020.0,1.59374016]
[1770634050959,3.458,2021.0,2020.0,1.59374016]
[1770634051301,1.23670541,2021.5,2020.0,1.59374016]
[1770634051652,1.23670541,2021.5,2020.1,1.23756249]
[1770634052274,1.75830667,2021.3,2020.1,1.23756249]
[1770634053053,0.0735222,2021.0,2020.0,0.001]
[1770634053384,0.0735222,2021.0,2020.0,1.23860709]
[1770634053554,0.0735222,2021.0,2020.0,0.001]
[1770634053749,1.23707259,2020.9,2020.0,0.001]
[1770634054174,1.23707259,2020.9,2020.2,0.001]
[1770634055288,3.458,2021.0,2020.2,0.001]
[1770634055607,4.94909227,2021.4,2020.2,1.59374016]
[1770634055608,1.23685565,2021.3,2020.2,1.59374016]
[1770634055791,0.002,2021.4,2020.3,1.23743998]
[1770634056170,0.002,2021.4,2020.3,2.83018014]
[1770634056368,1.68678447,2021.4,2020.2,0.001]
[1770634056611,0.0735222,2021.3,2020.2,1.23849821]
[1770634057763,6.45388897,2021.2,2020.2,0.001]
[1770634057966,1.68478447,2020.8,2020.2,0.001]
[1770634058186,1.68478447,2020.8,2020.0,0.001]
[1770634058187,5.217,2020.7,2020.0,0.001]
[1770634060103,1.23725626,2020.6,2020.0,0.001]
[1770634061399,6.52777846,2020.6,2020.0,0.001]
[1770634062297,1.31077846,2020.6,2020.0,0.001]
[1770634062504,1.23725626,2020.6,2020.0,0.001]
[1770634063781,1.31077846,2020.6,2020.0,0.001]
[1770634063988,1.68478447,2020.5,2019.8,0.001]
[1770634064420,1.23737873,2020.4,2019.8,0.001]
[1770634064591,4.69619503,2020.7,2019.8,0.001]
[1770634064787,1.68478447,2020.6,2019.8,0.001]
[1770634065091,1.75830667,2020.4,2019.8,0.001]
[1770634066910,1.23743998,2020.3,2020.2,0.001]
[1770634067122,10.32981444,2020.7,2020.2,0.001]
[1770634067123,1.23725626,2020.6,2020.2,0.001]
[1770634069001,4.69823927,2020.7,2020.2,0.001]
[1770634069205,0.002,2020.7,2020.2,0.001]
[1770634069515,1.23919872,2020.7,2020.2,0.001]
[1770634071122,0.002,2020.7,2020.2,0.001]
[1770634072019,1.58029224,2020.5,2020.0,0.001]
[1770634072222,1.58029224,2020.5,2019.8,0.001]
[1770634072925,1.23737873,2020.4,2019.8,0.001]
[1770634074712,3.459,2020.6,2019.8,1.53680486]
[1770634074925,4.69627568,2020.6,2019.8,1.53680486]
[1770634075108,4.69627568,2020.6,2019.8,0.001]
[1770634075514,4.69627568,2020.6,2019.8,1.23874429]
[1770634075820,4.69627568,2020.6,2019.8,2.77454915]
[1770634076515,1.23922327,2020.7,2019.9,1.53580486]
[1770634077211,0.002,2020.7,2020.0,1.23762376]
[1770634077407,0.002,2020.7,2019.9,2.77345235]
[1770634078227,0.0735222,2020.6,2019.8,0.001]
[1770634079336,1.23731749,2020.5,2019.8,0.001]
[1770634079628,1.23731749,2020.5,2020.1,0.001]
[1770634079820,1.23931749,2020.5,2020.1,0.001]
[1770634080016,0.002,2020.5,2020.1,0.001]
[1770634080435,0.002,2020.7,2020.1,0.001]
[1770634080623,1.23910829,2020.9,2020.1,0.001]
[1770634081298,0.002,2020.9,2020.1,0.001]
[1770634081638,0.0735222,2020.8,2020.1,0.001]
[1770634082009,3.5335222,2020.8,2020.1,0.001]
[1770634082642,3.46,2020.8,2020.1,0.001]
[1770634084041,1.23719503,2020.7,2020.1,0.001]
[1770634085818,4.69715695,2020.8,2020.1,0.001]
[1770634087131,5.217,2020.7,2020.1,0.001]
[1770634087335,4.69715695,2020.8,2020.1,0.001]
[1770634087726,0.0735222,2020.7,2020.1,0.001]
[1770634088425,1.23725626,2020.6,2020.1,0.001]
[1770634089228,1.23725626,2020.6,2019.9,0.001]
[1770634091936,1.23724419,2020.7,2019.9,0.001]
[1770634092663,0.0735222,2020.4,2019.9,0.001]
[1770634093524,0.0735222,2020.4,2020.3,0.001]
[1770634093846,0.0735222,2020.4,2019.9,0.001]
[1770634094045,0.0735222,2020.1,2020.0,0.001]
[1770634094220,1.58029224,2020.0,2019.2,0.001]
[1770634094420,1.23786888,2019.6,2019.2,0.001]
[1770634094621,1.23774631,2019.8,2019.2,0.001]
[1770634095952,1.23774631,2019.8,2019.0,0.001]
[1770634095953,0.0735222,2019.5,2019.0,0.001]
[1770634096543,1.23799148,2019.4,2018.7,0.001]
[1770634098625,4.95196593,2019.6,2018.7,0.001]
[1770634099026,1.23786888,2019.6,2018.7,1.56394406]
[1770634099541,1.23786888,2019.6,2018.7,0.001]
[1770634099721,0.0735222,2019.5,2018.7,0.001]
[1770634100349,1.51536183,2019.5,2018.7,0.001]
[1770634100729,1.23799148,2019.4,2018.7,0.001]
[1770634101139,0.0735222,2019.2,2018.5,0.001]
[1770634101356,1.23799148,2019.4,2018.5,0.001]
[1770634101726,0.0735222,2019.2,2018.5,0.001]
[1770634101958,3.461,2019.1,2018.5,0.001]
[1770634102156,3.461,2019.1,2017.9,1.23890297]
[1770634102332,0.0735222,2018.9,2017.8,1.56294406]
[1770634102841,1.23835942,2018.8,2017.8,2.80191574]
[1770634103350,1.23835942,2018.8,2017.8,1.56294406]
[1770634103554,1.23835942,2018.8,2017.8,1.23896898]
[1770634104069,1.23835942,2018.8,2017.8,1.23897121]
[1770634104236,1.23835942,2018.8,2017.8,2.80191527]
[1770634104556,1.31188162,2018.8,2017.8,1.56294406]
[1770634104754,1.31188162,2018.8,2017.6,1.24006482]
[1770634104924,1.31188162,2018.8,2017.6,1.24009473]
[1770634105126,0.0735222,2018.5,2017.6,0.001]
[1770634105330,3.461,2018.5,2017.6,0.001]
[1770634105555,3.461,2018.5,2017.6,1.2400939]
[1770634105867,0.0735222,2019.1,2017.7,1.56294406]
[1770634106052,1.23805279,2019.3,2017.9,1.56294406]
[1770634106369,0.0735222,2019.2,2017.9,1.56294406]
[1770634106561,1.24005279,2019.3,2018.1,1.56294406]
[1770634106856,1.24005279,2019.3,2018.1,2.8016977]
[1770634107067,1.24005279,2019.3,2018.2,1.56294406]
[1770634107232,0.002,2019.3,2018.2,1.56294406]
[1770634107848,0.0735222,2019.2,2018.2,1.56294406]
[1770634108563,0.0735222,2019.2,2018.1,1.23875364]
[1770634108944,1.23817542,2019.1,2018.1,1.56294406]
[1770634109684,0.0735222,2018.9,2018.1,1.56294406]
[1770634110373,1.23817542,2019.1,2018.1,1.56294406]
[1770634110676,1.24009313,2019.3,2018.1,1.56294406]
[1770634111171,0.002,2019.3,2018.3,1.56294406]
[1770634111939,0.002,2019.3,2018.5,1.56294406]
[1770634112249,0.002,2019.3,2018.2,1.23872757]
[1770634112250,0.002,2019.3,2018.2,2.80167163]
[1770634112652,0.0735222,2019.1,2018.2,1.23872757]
[1770634112958,1.23823675,2019.0,2017.9,1.56294406]
[1770634113267,1.23823675,2019.0,2018.2,1.23872229]
[1770634115679,3.464,2019.3,2018.2,1.56294406]
[1770634115864,1.2381141,2019.2,2018.2,1.56294406]
[1770634116178,0.002,2019.3,2018.2,1.56294406]
[1770634116557,0.002,2019.3,2017.9,10.60065926]
[1770634116558,1.24008101,2019.3,2018.3,1.56294406]
[1770634117076,1.24008101,2019.3,2017.9,1.56294406]
[1770634117077,0.0735222,2019.2,2017.9,1.56294406]
[1770634117385,0.0735222,2019.2,2018.0,5.933686]
[1770634117569,0.0735222,2019.2,2018.1,1.56294406]
[1770634118477,1.23817542,2019.1,2018.4,0.001]
[1770634118850,1.2400759,2019.3,2018.4,1.56394406]
[1770634119452,1.2400759,2019.3,2018.4,0.001]
[1770634119875,0.0735222,2019.2,2018.4,0.001]
[1770634120049,0.002,2019.3,2018.6,1.56294406]
[1770634120455,0.002,2019.3,2018.6,2.80137799]
[1770634121071,0.0735222,2019.2,2018.5,1.23849732]
[1770634121266,0.0735222,2019.2,2018.4,1.23960471]
[1770634121476,0.0735222,2019.2,2018.4,1.23959815]
[1770634121670,0.0735222,2019.2,2018.4,0.001]
[1770634122375,1.23854347,2018.5,2018.2,0.001]
[1770634123356,0.0735222,2018.9,2018.2,0.001]
[1770634123357,1.23835942,2018.9,2018.2,0.001]
[1770634123968,0.0735222,2018.6,2018.2,0.001]
[1770634124166,2.75372125,2018.9,2018.2,0.001]
[1770634124487,1.31188162,2018.9,2018.2,0.001]
[1770634124653,0.0735222,2019.1,2018.2,0.001]
[1770634126785,1.23823675,2019.0,2018.2,0.001]
[1770634127786,0.0735222,2018.8,2018.2,0.001]
[1770634128787,4.952947,2019.1,2018.2,0.001]
[1770634128964,0.0735222,2018.9,2018.2,0.001]
[1770634129586,0.0735222,2018.6,2018.2,0.001]
[1770634130697,0.0735222,2018.6,2017.8,1.23997213]
[1770634130881,1.31206505,2018.6,2018.4,0.001]
[1770634132368,8.41583127,2018.7,2018.4,0.001]
[1770634132369,4.70046116,2018.7,2018.4,0.001]
[1770634133386,0.0735222,2018.6,2018.4,0.001]
[1770634133586,0.0735222,2018.6,2017.8,0.001]
[1770634133984,4.70046116,2018.7,2017.8,0.001]